Service Area,Expense Type,Date,Transaction Number,Amount,Supplier
Countryside Management,Vehicle Maint Costs,2010-04-12,5000071605,573.47,Dh Price Motors
Countryside Management,Pay To Pvte Contract,2010-06-18,5000085266,4002.0,Bks Security Services
Countryside Management,Consultants Fees,2010-09-30,5000104154,750.0,Natural Enterprise Ltd
Countryside Management,Pay To Pvte Contract,2010-11-09,5000111376,1875.0,R J Cook Ltd
Countryside Management,Maint Of Op Equip,2010-11-09,5000111384,784.14,Redacted Personal Data
Countryside Management,Pay To Pvte Contract,2010-11-22,5000113602,2950.0,L T Training
Countryside Management,Pay To Pvte Contract,2010-11-24,5000114121,1286.0,Redacted Personal Data
Countryside Management,Pay To Pvte Contract,2010-11-24,5000114122,669.6,Redacted Personal Data
Countryside Management,Vehicle Maint Costs,2010-12-02,5000115384,800.0,Island Coachworks
Countryside Management,Vehicle Maint Costs,2010-12-02,5000115385,700.0,Island Coachworks
Countryside Management,Vehicle Maint Costs,2011-01-25,5000123118,1962.07,Island Coachworks
Countryside Management,Pay To Pvte Contract,2011-02-03,5000124847,2828.0,Redacted Personal Data
Countryside Management,Vehicle Maint Costs,2011-02-15,5000127234,2141.86,Island Coachworks
Countryside Management,Pay To Pvte Contract,2011-02-24,5000128787,2538.0,Redacted Personal Data
Countryside Management,Pay To Pvte Contract,2011-03-09,5000131097,5075.0,Jrr Fencing Ltd
Countryside Management,Pay To Pvte Contract,2011-03-09,5000131109,756.0,Redacted Personal Data
Countryside Management,General Materials,2011-03-16,5000132131,1375.0,Hants&Isle Of Wight Wildlife Trust
Countryside Management,Vehicle Maint Costs,2011-03-29,1900318411,554.0,Asset Advantage Limited
Countryside Management,Pay To Pvte Contract,2011-03-29,5000134289,1115.0,Hants&Isle Of Wight Wildlife Trust
Countryside Management,Pay To Pvte Contract,2011-04-28,5000139009,565.0,Arbutus
Countryside Management,Vehicle Maint Costs,2011-05-19,5000142011,694.0,Asset Advantage Limited
Countryside Management,Vehicle Maint Costs,2011-05-19,5000142011,554.0,Asset Advantage Limited
Countryside Management,Pay To Pvte Contract,2011-06-21,5000146561,672.0,R J Cook Ltd
Countryside Management,Maint Of Op Equip,2011-06-29,5000147753,-784.14,Redacted Personal Data
Countryside Management,General Materials,2011-07-15,5000150441,600.0,Signpost Express
Countryside Management,Pay To Pvte Contract,2011-08-26,5000156349,1000.0,Redacted Personal Data
Countryside Management,Pay To Pvte Contract,2011-09-13,5000158538,600.0,Redacted Personal Data
Countryside Management,Pay To Pvte Contract,2011-11-09,1900420782,3400.51,Hants&Isle Of Wight Wildlife Trust
Countryside Management,Maint Of Op Equip,2011-11-18,5000167865,962.62,Redacted Personal Data
Countryside Management,Maint Of Op Equip,2011-11-22,5000168166,-784.14,Redacted Personal Data
Countryside Management,Maint Of Op Equip,2011-11-22,5000168172,745.44,Redacted Personal Data
Countryside Management,Pay To Pvte Contract,2011-12-07,5000170413,6850.0,R J Cook Ltd
Countryside Management,Pay To Pvte Contract,2011-12-19,5000172606,1920.0,Redacted Personal Data
Countryside Management,Payment To Private Contractors,2012-01-04,5000173658,1840.0,Jrr Fencing Ltd
Countryside Management,Payment To Private Contractors,2012-01-09,5000174889,1925.0,R J Cook Ltd
Countryside Management,Payment To Private Contractors,2012-01-13,5000175511,892.0,Redacted Personal Data
Countryside Management,Payment To Private Contractors,2012-01-13,5000175510,2440.0,Groundsell Contracting Ltd
Countryside Management,Payment To Private Contractors,2012-01-30,5000177564,1630.0,Groundsell Contracting Ltd
Countryside Management,General Materials,2012-02-06,5000178396,780.0,Clifford J. Matthews Ltd
Countryside Management,Vehicle Maintenance Costs,2012-02-17,5000181096,-554.0,Asset Advantage Limited
Countryside Management,Vehicle Maintenance Costs,2012-02-17,5000181083,-694.0,Asset Advantage Limited
Countryside Management,Payment To Private Contractors,2012-02-24,5000182047,684.0,Redacted Personal Data
Countryside Management,Payment To Private Contractors,2012-03-06,5000183262,3165.0,Groundsell Contracting Ltd
Countryside Management,General Materials,2012-03-15,5000185560,563.84,Rvn Building Supplies Ltd
Countryside Management,Payment To Private Contractors,2012-03-27,5000187277,5717.0,Groundsell Contracting Ltd
Countryside Management,Charges From Independent Providers,2012-03-28,5000187525,2023.0,Groundsell Contracting Ltd
